bitfinex-derivatives/quotes_ETHF0:USTF0_20250905
["timestamp","ask_amount","ask_price","bid_price","bid_amount"]
[1757086697814,0.5866,4297.5,4297.4,0.243]
[1757086698213,0.8296,4298.0,4297.4,1.4936]
[1757086698418,1.4758,4297.9,4297.6,3.2078]
[1757086698613,0.5866,4298.0,4297.7,0.243]
[1757086698924,3.2078,4298.6,4297.8,1.2506]
[1757086699124,3.2078,4298.6,4297.9,0.243]
[1757086700221,1.4758,4298.4,4297.9,0.243]
[1757086700525,1.4758,4298.5,4298.1,3.2078]
[1757086700719,2.0624,4299.0,4298.2,1.4936]
[1757086703132,1.4758,4298.8,4298.2,1.4936]
[1757086704920,2.5431,4298.8,4298.7,1.9756]
[1757086705131,3.5375,4298.8,4298.7,1.217]
[1757086705530,3.5375,4298.8,4298.7,0.243]
[1757086705832,3.5375,4298.8,4298.7,2.2186]
[1757086706427,0.5866,4299.0,4298.1,3.2078]
[1757086706627,2.5431,4298.3,4298.2,1.217]
[1757086707025,1.4758,4298.3,4298.2,3.4684]
[1757086707333,0.5835,4298.5,4298.2,2.2186]
[1757086707625,4.121,4298.5,4298.4,1.9756]
[1757086707933,3.1266,4298.5,4298.4,1.9756]
[1757086708134,1.4758,4298.5,4298.4,3.2254]
[1757086708324,0.5866,4299.0,4298.4,3.2254]
[1757086708530,2.7131,4298.9,4298.8,0.974]
[1757086708724,2.7131,4298.9,4298.8,1.217]
[1757086709125,1.6458,4298.9,4298.8,3.4684]
[1757086709734,0.17,4298.9,4298.8,3.4684]
[1757086710130,1.4758,4299.7,4299.1,1.04661]
[1757086710432,1.4758,4299.7,4299.6,3.2254]
[1757086710628,1.4758,4299.7,4299.6,3.4684]
[1757086712232,3.5375,4299.7,4299.6,0.243]
[1757086712431,3.7913,4300.0,4299.4,3.2078]
[1757086712432,4.121,4299.5,4299.4,3.2078]
[1757086712632,4.121,4299.5,4299.4,3.4508]
[1757086713231,4.121,4299.5,4299.4,3.2078]
[1757086713434,4.121,4299.5,4299.4,3.4508]
[1757086713629,4.121,4299.5,4299.4,4.4248]
[1757086715631,1.4758,4299.5,4299.4,6.6762]
[1757086715835,0.5835,4300.0,4299.4,5.4264]
[1757086716038,4.121,4300.0,4299.9,5.1834]
[1757086716235,3.1266,4300.0,4299.9,5.4264]
[1757086716732,3.1266,4300.5,4300.4,1.9756]
[1757086716933,1.24767892,4301.1,4300.4,5.4264]
[1757086717128,1.4758,4300.9,4300.4,5.4264]
[1757086717330,0.243,4301.2,4300.4,5.4264]
[1757086717529,3.1266,4300.5,4300.4,5.1834]
[1757086717835,4.121,4300.5,4300.4,4.1818]
[1757086718032,4.121,4300.5,4300.4,4.4248]
[1757086719536,4.121,4300.5,4300.4,4.1818]
[1757086719736,4.121,4300.5,4300.4,4.4248]
[1757086720635,4.121,4300.5,4300.4,4.1818]
[1757086720834,8.121,4300.5,4300.4,1.5939]
[1757086721038,8.121,4300.5,4300.1,0.12799573]
[1757086721242,1.4758,4300.4,4300.1,0.12799573]
[1757086721434,2.5431,4300.2,4300.1,3.69639573]
[1757086721639,3.5375,4300.2,4299.7,1.5928]
[1757086721939,1.4758,4299.8,4299.6,3.2078]
[1757086722136,3.5375,4299.7,4299.6,4.1818]
[1757086722334,3.5375,4299.7,4299.6,4.4248]
[1757086722535,3.5375,4299.7,4299.3,1.5928]
[1757086722536,2.0617,4299.7,4299.3,1.5928]
[1757086722840,3.5375,4299.4,4299.3,2.5668]
[1757086723037,3.5375,4299.4,4299.3,1.217]
[1757086723442,2.0617,4299.1,4299.0,3.2078]
[1757086723736,3.5375,4299.1,4299.0,3.4508]
[1757086724131,3.5375,4299.1,4299.0,3.2078]
[1757086724339,3.5375,4299.1,4299.0,4.1818]
[1757086724538,3.5375,4299.1,4299.0,4.4248]
[1757086725538,3.5375,4299.1,4299.0,3.4508]
[1757086725740,3.5375,4299.1,4298.3,1.5928]
[1757086725741,2.5431,4298.4,4298.3,3.5684]
[1757086726042,1.4758,4298.9,4298.4,1.5928]
[1757086726244,3.5375,4298.9,4298.8,0.974]
[1757086726441,3.5375,4298.9,4298.8,1.217]
[1757086727446,3.5375,4298.9,4298.8,0.243]
[1757086727751,1.4758,4298.8,4298.5,1.8358]
[1757086727946,2.5431,4298.6,4298.5,2.8098]
[1757086728148,3.5375,4298.6,4298.5,2.8098]
[1757086728442,3.5375,4298.6,4298.5,2.5668]
[1757086728647,3.5375,4298.6,4298.5,2.8098]
[1757086729147,1.0038,4298.2,4298.1,6.8087]
[1757086729343,2.5714,4298.2,4298.1,6.8087]
[1757086729538,3.6419,4298.2,4298.1,5.4686]
[1757086729739,3.6419,4298.2,4298.1,0.9978]
[1757086729936,1.0038,4298.2,4298.1,0.243]
[1757086730140,1.2468,4298.7,4298.6,0.9978]
[1757086730343,2.5714,4298.7,4298.6,2.2608]
[1757086730651,1.0038,4298.7,4298.6,3.8439]
[1757086730849,4.7754,4299.2,4298.7,1.5831]
[1757086731037,3.6419,4299.2,4299.1,0.9978]
[1757086731241,3.6419,4299.2,4299.1,0.243]
[1757086732047,3.6419,4299.2,4299.1,3.8439]
[1757086732350,3.2078,4299.7,4299.1,2.2608]
[1757086732543,4.7754,4299.7,4299.2,1.5831]
[1757086732849,3.6419,4299.4,4299.3,0.243]
[1757086733648,3.6419,4299.4,4299.3,3.8439]
[1757086733952,3.2078,4299.7,4299.3,0.243]
[1757086734146,4.2116,4299.7,4299.6,3.6009]
[1757086734349,4.2116,4299.7,4299.6,3.8439]
[1757086734544,6.8497,4299.7,4299.6,3.8439]
[1757086734846,3.6419,4299.7,4299.6,2.2608]
[1757086735043,2.25147892,4300.1,4300.0,2.0178]
[1757086735249,4.88957892,4300.1,4300.0,3.6009]
[1757086735441,4.88957892,4300.1,4300.0,2.0178]
[1757086735848,3.6419,4300.1,4300.0,2.2608]
[1757086737452,3.6419,4299.7,4299.6,0.9978]
[1757086737953,3.6419,4299.7,4299.6,1.2408]
[1757086738251,1.5676,4299.6,4299.1,3.2078]
[1757086738454,2.0743,4299.3,4299.2,1.2408]
[1757086738754,3.6419,4299.3,4299.2,3.8439]
[1757086738942,1.0038,4299.3,4299.2,3.8439]
[1757086739454,3.6419,4299.3,4299.2,3.8439]
[1757086740250,1.5676,4299.2,4298.6,4.7909]
[1757086740452,3.6419,4298.7,4298.6,0.9978]
[1757086740645,3.6419,4298.7,4298.6,1.2408]
[1757086740852,1.0038,4298.7,4298.6,3.8439]
[1757086741147,5.7792,4299.2,4299.1,0.9978]
[1757086741352,6.8497,4299.2,4299.1,0.243]
[1757086742451,6.8497,4299.2,4298.4,3.2078]
[1757086742452,1.5676,4299.1,4298.8,1.5831]
[1757086742752,3.6419,4299.1,4299.0,1.2408]
[1757086742953,3.6419,4299.1,4299.0,0.243]
[1757086744254,3.6419,4298.5,4298.4,5.7887]
[1757086744451,2.1975,4299.0,4298.4,7.0517]
[1757086744649,3.2078,4299.3,4299.2,3.6009]
[1757086744851,1.5676,4299.8,4299.2,2.2608]
[1757086745159,2.5714,4299.8,4299.7,3.6009]
[1757086745350,2.5714,4299.8,4299.7,3.8439]
[1757086746749,1.0038,4299.8,4299.7,3.8439]
[1757086746951,3.2078,4299.9,4299.8,1.5831]
[1757086747145,2.5714,4300.2,4300.1,3.6009]
[1757086747351,3.6419,4300.2,4300.1,3.8439]
[1757086747551,3.6419,4300.2,4300.1,2.2608]
[1757086748157,1.0038,4300.2,4300.1,3.8439]
[1757086748459,2.5714,4300.2,4300.1,3.8439]
[1757086748659,3.6419,4300.2,4300.1,3.8439]
[1757086749760,3.4508,4300.9,4300.2,1.5831]
[1757086749761,1.5676,4300.8,4300.2,1.5831]
[1757086749959,2.0743,4300.8,4300.4,1.5831]
[1757086750158,2.0743,4300.8,4300.5,0.243]
[1757086750360,1.5676,4300.7,4300.4,0.243]
[1757086750659,0.6299,4300.5,4300.4,0.243]
[1757086750958,4.2718,4300.5,4300.4,0.243]
[1757086751556,2.0743,4300.1,4300.0,3.2078]
[1757086751760,3.6419,4300.1,4300.0,4.4486]
[1757086752261,3.6419,4300.1,4300.0,6.0317]
[1757086752659,3.6419,4300.1,4300.0,0.243]
[1757086752859,3.6419,4300.1,4299.5,3.2078]
[1757086753058,3.6419,4299.7,4299.6,0.243]
[1757086753358,3.6419,4299.7,4299.6,3.8439]
[1757086753660,1.5676,4300.3,4299.7,1.5831]
[1757086754053,3.6419,4300.3,4300.2,0.9978]
[1757086754666,3.6419,4300.3,4300.0,0.243]
[1757086756974,2.7042,4300.0,4299.9,0.243]
[1757086757169,4.2718,4300.0,4299.9,0.243]
[1757086757567,3.6419,4299.6,4299.5,4.2056]
[1757086757963,3.6419,4299.6,4299.5,4.4486]
[1757086758171,3.6419,4299.6,4299.5,7.0517]
[1757086759173,3.6419,4299.6,4299.5,6.8087]
[1757086759374,3.6419,4299.6,4299.5,7.0517]
[1757086759971,3.6419,4299.6,4299.5,5.4686]
[1757086760174,4.208,4299.5,4299.4,0.243]
[1757086760371,1.5578,4299.9,4299.4,3.9071]
[1757086760672,1.0191,4299.6,4299.5,2.0824]
[1757086760873,2.5769,4299.6,4299.5,3.6641]
[1757086761280,2.5769,4299.9,4299.8,2.0824]
[1757086761578,3.6056,4299.9,4299.8,1.0656]
[1757086762078,3.6056,4299.9,4299.7,0.243]
[1757086763975,3.6056,4299.9,4299.8,0.243]
[1757086764177,3.6056,4299.9,4299.0,3.7947]
[1757086764381,3.6056,4299.9,4299.1,1.8247]
[1757086764676,3.6056,4299.9,4299.2,0.243]
[1757086764875,3.6056,4299.3,4299.2,1.3086]
[1757086765077,3.6056,4299.3,4299.0,3.2078]
[1757086765273,3.6056,4299.2,4299.0,3.2078]
[1757086765474,0.6024,4299.0,4298.6,3.2078]
[1757086765681,3.6056,4298.7,4298.5,0.242]
[1757086766071,2.0478,4297.7,4297.5,3.2078]
[1757086766271,1.5578,4297.6,4297.5,3.2078]
[1757086766474,3.6056,4297.6,4297.5,3.4498]
[1757086766676,1.0191,4297.9,4297.8,2.0824]
[1757086766870,2.5769,4297.9,4297.8,3.6641]
[1757086767180,3.6056,4297.9,4297.8,2.3244]
[1757086767486,3.6056,4297.9,4297.8,3.9061]
[1757086768577,3.6056,4297.9,4297.8,2.3244]
[1757086768880,1.5578,4297.8,4297.5,3.4498]
[1757086769085,3.6056,4297.6,4297.5,3.2078]
[1757086769971,4.208,4297.5,4297.4,0.242]
[1757086770177,1.5578,4297.4,4297.2,0.242]
[1757086770380,3.6056,4297.3,4297.2,0.242]
[1757086770784,2.0478,4297.3,4297.1,3.2078]
[1757086771086,1.5578,4297.2,4297.1,3.4498]
[1757086771284,3.6056,4297.2,4297.1,3.4498]
[1757086771483,3.6056,4297.2,4297.1,0.242]
[1757086772485,3.6056,4297.2,4297.1,1.3076]
[1757086772681,3.6056,4297.2,4296.4,3.2078]
[1757086772885,3.6056,4297.2,4296.5,0.242]
[1757086773089,3.6056,4297.2,4296.4,4.7895]
[1757086773382,0.6024,4296.5,4296.4,4.2734]
[1757086773685,0.6024,4296.5,4296.4,7.1139]
[1757086773686,3.6056,4296.5,4296.4,7.1139]
[1757086773888,1.5578,4296.9,4296.4,7.1139]
[1757086774084,3.6056,4297.0,4296.9,2.0824]
[1757086774291,3.6056,4297.0,4296.9,3.6641]
[1757086774292,1.0191,4297.0,4296.9,3.6641]
[1757086774588,0.242,4297.6,4297.2,2.0824]
[1757086774788,0.242,4297.6,4297.5,2.0824]
[1757086774789,2.8189,4297.6,4297.5,2.0824]
[1757086775088,0.242,4297.8,4297.6,1.5817]
[1757086775285,2.5865,4297.9,4297.8,1.5817]
[1757086775484,2.5865,4297.9,4297.7,0.242]
[1757086775485,3.6056,4297.9,4297.7,0.242]
[1757086775692,2.0478,4297.9,4297.7,0.242]
[1757086775885,3.6056,4297.8,4297.7,3.9061]
[1757086778581,1.0191,4297.8,4297.7,3.9061]
[1757086778789,1.5578,4298.3,4297.8,1.5817]
[1757086779090,1.0191,4298.0,4297.9,3.9061]
[1757086779678,0.6024,4298.5,4298.1,2.6473]
[1757086779883,3.6056,4298.2,4297.9,0.242]
[1757086780083,0.6024,4298.5,4297.4,3.2078]
[1757086780084,4.208,4298.0,4297.4,3.2078]
[1757086780284,4.208,4298.0,4297.5,1.8237]
[1757086780793,4.208,4298.0,4297.5,1.5817]
[1757086780991,4.208,4298.0,4297.4,3.2078]
[1757086780992,0.6024,4297.5,4297.4,3.2078]
[1757086781182,1.0191,4297.5,4297.4,7.1139]
[1757086781388,2.5769,4297.8,4297.7,2.0824]
[1757086781688,2.5769,4297.8,4297.7,3.6641]
[1757086781991,0.6024,4298.5,4297.8,1.5817]
[1757086781992,1.5578,4298.4,4297.8,1.5817]
[1757086782193,3.6056,4298.4,4298.3,1.0656]
[1757086783696,1.0191,4298.4,4298.3,3.9061]
[1757086783989,3.6056,4298.8,4298.7,1.0656]
[1757086784691,1.0191,4298.8,4298.7,3.9061]
[1757086784885,1.5578,4299.7,4299.1,3.6641]
[1757086785089,2.5769,4299.3,4299.2,3.9061]
[1757086786094,3.6056,4299.3,4299.2,2.3244]
[1757086786291,3.6056,4299.3,4299.2,2.0824]
[1757086786492,3.6056,4299.3,4299.2,3.9061]
[1757086791096,1.5029,4300.2,4299.3,1.5746]
[1757086791399,2.4875,4299.5,4299.4,3.8025]
[1757086791698,3.5265,4299.5,4299.4,3.8025]
[1757086792799,4.1685,4299.5,4299.4,1.2493]
[1757086793400,4.1685,4299.5,4299.4,0.242]
[1757086793592,4.1685,4298.5,4298.4,3.2078]
[1757086793798,4.1685,4298.5,4298.4,4.4571]
[1757086793998,4.1685,4298.5,4298.4,6.0317]
[1757086794696,4.1685,4298.5,4298.4,4.4571]
[1757086795197,4.1685,4298.5,4298.4,3.4498]
[1757086795795,0.9846,4298.5,4298.4,5.4357]
[1757086796001,2.4875,4298.5,4298.4,7.0103]
[1757086796405,4.1685,4298.5,4298.4,4.2151]
[1757086796603,4.1685,4298.5,4298.4,4.4571]
[1757086796996,4.1685,4298.5,4298.4,3.4498]
[1757086797499,0.642,4298.0,4297.9,0.242]
[1757086797699,2.0236,4297.7,4297.6,2.5819]
[1757086798002,3.5265,4297.7,4297.6,2.5819]
[1757086798203,3.5265,4297.7,4297.6,2.8239]
[1757086799305,3.5265,4297.7,4297.6,3.8025]
[1757086800301,0.9846,4297.7,4297.6,3.8025]
[1757086800701,1.5029,4298.0,4297.6,3.8025]
[1757086801006,2.4875,4297.9,4297.8,3.5605]
[1757086801201,2.4875,4297.9,4297.8,3.8025]
[1757086802509,3.7685,4298.4,4298.3,3.5605]
[1757086803204,3.5265,4298.4,4298.3,3.5605]
[1757086803604,3.5265,4298.4,4298.3,1.0073]
[1757086804107,3.5265,4298.4,4298.2,0.242]
[1757086804309,1.5029,4298.3,4298.2,0.242]
[1757086804510,3.5265,4298.3,4298.2,3.8025]
[1757086805212,1.5029,4298.5,4298.3,1.5746]
[1757086805412,2.4875,4298.5,4298.4,3.8025]
[1757086805706,3.8498,4299.0,4298.4,3.8025]
[1757086805707,3.2078,4299.0,4298.4,3.8025]
[1757086805897,0.242,4299.9,4299.0,2.5819]
[1757086806101,3.8498,4299.5,4299.1,3.8025]
[1757086806307,3.5265,4299.2,4299.1,1.2493]
[1757086807402,3.5265,4299.2,4299.1,3.8025]
[1757086808811,3.5265,4299.2,4299.1,2.2279]
[1757086809907,0.9846,4298.5,4298.4,3.5605]
[1757086810307,3.5265,4298.5,4298.4,3.8025]
[1757086810510,4.1685,4298.5,4298.4,1.0073]
[1757086810704,4.1685,4298.5,4298.4,1.2493]
[1757086810910,2.0236,4298.4,4297.7,3.2078]
[1757086811110,3.5265,4297.9,4297.8,3.8025]
[1757086811611,0.9846,4297.9,4297.8,3.8025]
[1757086812012,3.5265,4297.9,4297.8,2.2279]
[1757086812306,3.5265,4297.9,4297.8,3.8025]
[1757086812506,3.5265,4297.9,4297.8,2.2279]
[1757086812921,1.5029,4297.8,4297.7,3.2078]
[1757086813122,3.5265,4297.8,4297.7,3.2078]
[1757086814318,3.7685,4297.8,4297.7,3.2078]
[1757086814819,3.7685,4297.8,4297.5,0.242]
[1757086815314,0.642,4298.5,4297.5,0.242]
[1757086815315,4.7107,4298.3,4297.6,1.5746]
[1757086815519,2.6656,4297.5,4297.4,1.2493]
[1757086815716,4.1685,4297.5,4297.4,0.242]
[1757086815916,2.4875,4296.8,4296.7,3.5605]
[1757086816114,2.4875,4297.4,4297.3,1.9859]
[1757086816317,2.4875,4297.4,4297.3,3.8025]
[1757086816517,0.9846,4297.4,4297.3,3.8025]
[1757086816718,0.242,4297.8,4297.3,2.2279]
[1757086816908,1.5029,4297.7,4297.6,1.0073]
[1757086817114,2.4875,4297.7,4297.6,3.5605]
[1757086817422,0.9846,4297.8,4297.7,1.5746]
[1757086817615,0.9846,4297.8,4297.7,3.8025]
[1757086818015,2.4875,4297.8,4297.7,3.8025]
[1757086818716,3.2078,4298.3,4297.4,1.2696]
[1757086818717,4.2495,4297.5,4297.4,1.2696]
[1757086818909,1.609,4297.9,4297.5,0.608]
[1757086819223,1.609,4297.9,4297.8,3.5943]
[1757086819224,2.6121,4297.9,4297.8,3.5943]
[1757086819414,3.663,4297.9,4297.8,3.5943]
[1757086819616,3.663,4297.9,4297.2,1.5137]
[1757086819910,3.663,4297.9,4297.3,0.242]
[1757086820121,3.663,4297.9,4297.8,2.0806]
[1757086820310,3.663,4297.9,4297.8,1.0276]
[1757086820514,3.663,4297.9,4297.4,0.242]
[1757086820515,0.5865,4297.5,4297.4,0.242]
[1757086820719,4.2495,4297.5,4297.4,0.242]
[1757086820921,4.2495,4297.5,4297.4,1.2696]
[1757086821424,0.5865,4297.0,4296.9,3.2078]
[1757086821621,3.663,4297.0,4296.9,7.0441]
[1757086821816,3.4406,4297.5,4297.4,1.0276]
[1757086822119,4.8168,4297.8,4297.5,2.1217]
[1757086822323,6.8708,4297.8,4297.7,2.0806]
[1757086822823,6.8708,4297.8,4297.7,1.0276]
[1757086823021,4.2495,4297.5,4297.4,0.242]
[1757086823413,0.242,4297.7,4297.4,2.3226]
[1757086823719,6.0619,4297.8,4297.7,3.5943]
[1757086823924,7.1128,4297.8,4297.7,3.5943]
[1757086824115,7.1128,4297.8,4297.7,2.0806]
[1757086824116,3.663,4297.8,4297.7,2.0806]
[1757086824621,5.0588,4298.3,4297.8,1.5137]
[1757086824817,1.0031,4297.9,4297.8,3.5943]
[1757086825428,3.2078,4298.3,4297.8,2.0806]
[1757086825618,6.8708,4298.9,4298.8,3.5943]
[1757086826116,3.663,4298.9,4298.8,3.5943]
[1757086826423,1.0031,4298.9,4298.8,3.5943]
[1757086826818,1.851,4299.2,4298.8,3.5943]
[1757086826819,1.609,4299.2,4298.8,3.5943]
[1757086827016,1.24767892,4299.3,4299.2,1.5137]
[1757086827223,1.24767892,4299.3,4299.2,3.5943]
[1757086828117,2.4375,4300.0,4299.3,1.5137]
[1757086828323,2.4375,4300.0,4299.4,0.242]
[1757086828519,1.0031,4299.5,4299.4,3.8363]
[1757086828722,2.6121,4299.1,4299.0,3.5943]
[1757086829020,2.6121,4299.1,4299.0,3.8363]
[1757086829216,1.0031,4299.1,4299.0,3.8363]
[1757086829817,3.663,4299.1,4299.0,3.8363]
[1757086830420,3.663,4299.1,4299.0,4.12196181]
[1757086831526,3.663,4299.1,4299.0,0.52766181]
[1757086831715,3.663,4299.1,4299.0,0.28566181]
[1757086831918,3.663,4299.1,4299.0,0.52766181]
[1757086832316,3.663,4299.1,4299.0,1.55526181]
[1757086833026,3.663,4299.1,4299.0,4.12196181]
[1757086834133,2.6121,4299.5,4299.4,3.5943]
[1757086834320,1.0031,4299.5,4299.4,4.12196181]
[1757086834629,0.5865,4300.0,4299.4,5.81606181]
[1757086834929,3.663,4299.9,4299.8,1.0276]
[1757086835130,3.663,4299.9,4299.8,1.31326181]
[1757086835820,3.663,4299.9,4299.8,0.28566181]
[1757086836228,3.663,4299.9,4299.7,0.242]
[1757086836526,3.663,4299.9,4299.5,0.242]
[1757086836826,3.663,4299.9,4299.6,0.2853437]
[1757086837127,3.663,4299.9,4299.7,0.2853437]
[1757086837320,2.054,4299.9,4299.5,0.242]
[1757086837521,3.663,4299.8,4299.7,1.0276]
[1757086837720,3.663,4299.8,4299.7,1.31298466]
[1757086838523,3.663,4299.8,4299.7,0.28538466]
[1757086839428,3.663,4299.8,4299.5,0.242]
[1757086839624,1.609,4299.7,4299.6,0.28539416]
[1757086839936,3.663,4299.7,4299.6,0.28539416]
[1757086840125,3.663,4299.7,4299.6,1.31299416]
[1757086843335,3.663,4299.7,4299.6,3.87969416]
[1757086844233,3.663,4300.2,4300.1,3.5943]
[1757086844436,3.663,4300.2,4300.1,3.88014002]
[1757086845432,3.663,4300.8,4300.7,1.0276]
[1757086845631,3.663,4300.8,4300.5,0.242]
[1757086845838,3.663,4300.8,4300.6,0.28579528]
[1757086846038,3.905,4300.8,4300.5,0.242]
[1757086846439,3.905,4300.8,4300.6,0.28581559]
[1757086846737,3.905,4300.8,4300.5,0.242]
[1757086846938,3.905,4300.8,4300.6,0.28586402]
[1757086847137,3.905,4300.8,4300.5,0.242]
[1757086847440,3.905,4300.8,4300.6,0.28584945]
[1757086847638,3.905,4300.8,4300.5,0.242]
[1757086847840,3.905,4300.8,4300.6,0.28583973]
[1757086848138,3.905,4300.8,4300.5,0.242]
[1757086848338,3.905,4300.8,4300.6,0.28583136]
[1757086848637,3.905,4300.8,4300.5,0.242]
[1757086848838,3.905,4300.8,4300.6,0.28589112]
[1757086849037,3.905,4300.8,4300.5,0.242]
[1757086849038,3.5688,4300.8,4300.7,3.79657964]
[1757086849239,3.5688,4300.8,4300.7,2.32597964]
[1757086850438,3.5688,4300.8,4300.7,0.28587964]
[1757086850629,1.5148,4300.7,4300.5,0.242]
[1757086850830,2.059,4300.6,4300.5,0.242]
[1757086851031,3.5738,4300.6,4300.5,0.52804197]
[1757086851230,3.5738,4300.6,4300.5,0.28604197]
[1757086851443,1.0205,4300.1,4300.0,2.2596]
[1757086851636,3.5738,4300.1,4300.0,2.54587967]
[1757086852139,3.5738,4300.1,4300.0,0.52827967]
[1757086852339,3.5738,4300.1,4300.0,4.01647967]
[1757086854141,3.5738,4300.1,4300.0,7.22427967]
[1757086855841,3.5738,4300.1,4300.0,7.82467967]
[1757086857341,0.5865,4301.0,4300.1,1.4706]
[1757086857539,2.6455,4301.0,4300.9,3.4882]
[1757086857740,2.6455,4301.0,4300.9,4.01647967]
[1757086857935,4.1623,4301.0,4300.9,4.01647967]
[1757086858446,3.5738,4301.5,4301.4,3.4882]
[1757086858634,3.5738,4301.5,4301.4,7.22427967]
[1757086859036,2.059,4302.0,4301.9,3.4882]
[1757086859341,3.5738,4302.0,4301.9,7.22427967]
[1757086860137,4.1623,4302.0,4301.9,3.49407967]
[1757086860537,4.1623,4302.0,4301.9,3.73607967]
[1757086861147,4.1623,4302.0,4301.9,3.49407967]
[1757086861445,4.1623,4302.0,4301.9,0.28627967]
[1757086862143,8.39475,4302.0,4301.9,0.28627967]
[1757086862340,8.39475,4302.0,4301.5,0.242]
[1757086862642,3.5738,4301.7,4301.6,0.29185104]
[1757086863848,3.8158,4301.7,4301.6,0.29185104]
[1757086868348,1.5148,4301.6,4300.8,1.4706]
[1757086868553,2.5353,4301.0,4300.9,3.78014096]
[1757086868852,3.5738,4301.0,4300.9,3.78014096]
[1757086869053,4.1623,4301.0,4300.9,1.29704096]
[1757086869853,4.1623,4301.0,4300.9,1.53904096]
[1757086871258,4.1623,4301.0,4300.9,0.53394096]
[1757086871856,3.5738,4301.0,4300.9,4.02214096]
[1757086872660,4.1623,4301.0,4300.9,1.53904096]
[1757086873165,4.1623,4301.0,4300.9,1.29704096]
[1757086873658,4.1623,4301.0,4300.9,0.29194096]
[1757086874460,4.1623,4301.0,4300.9,1.29704096]
[1757086874863,4.4043,4301.0,4300.9,0.29194096]
[1757086878069,1.0205,4300.2,4300.1,6.938]
[1757086878265,3.5645,4300.2,4300.1,6.938]
[1757086878773,3.5645,4300.2,4300.1,6.696]
[1757086878966,3.5645,4300.2,4300.1,4.2129]
[1757086879363,3.5645,4300.2,4300.1,3.2078]
[1757086879569,3.5645,4300.2,4299.8,1.7819]
[1757086879768,3.5645,4300.2,4299.5,3.2078]
[1757086879769,1.4787,4299.8,4299.5,3.2078]
[1757086880062,3.5711,4299.6,4299.5,6.7955]
[1757086880371,3.5711,4299.6,4299.5,7.4096]
[1757086880572,3.5711,4299.6,4299.5,6.7955]
[1757086881967,3.5711,4299.3,4299.2,2.5606]
[1757086882272,3.5711,4299.3,4299.1,0.241]
[1757086882474,0.5902,4299.5,4298.9,0.241]
[1757086882475,2.6826,4299.0,4298.9,0.241]
[1757086882769,4.1613,4299.0,4298.9,0.241]
[1757086883262,4.1613,4299.0,4298.9,1.0207]
[1757086884071,4.1613,4299.0,4298.9,2.5606]
[1757086884568,3.5711,4299.0,4298.9,3.5877]
[1757086884771,1.0271,4299.0,4298.9,3.5877]
[1757086884971,2.5058,4299.0,4298.9,3.5877]
[1757086885172,3.5711,4299.0,4298.9,3.5877]
[1757086886277,3.2078,4299.4,4298.9,3.5877]
[1757086886576,7.0209,4299.4,4299.3,3.5877]
[1757086886875,3.8131,4299.4,4299.3,3.5877]
[1757086887063,3.5711,4299.4,4299.3,3.5877]
[1757086887370,2.5058,4300.2,4300.1,3.5877]
[1757086887568,3.5711,4300.2,4300.1,3.5877]
[1757086887766,2.0924,4299.9,4299.8,0.241]
[1757086887966,3.5711,4299.9,4299.0,3.8219]
[1757086888268,3.5711,4299.2,4298.6,1.5399]
[1757086888468,3.5711,4298.7,4298.6,3.5877]
[1757086888877,1.0271,4298.7,4298.6,3.5877]
[1757086889076,1.4787,4299.0,4298.7,1.5399]
[1757086889275,2.5058,4299.0,4298.9,2.0478]
[1757086889474,2.6826,4299.5,4299.4,2.0478]
[1757086889676,4.1613,4299.5,4299.4,2.0478]
[1757086889876,4.1613,4299.5,4299.4,3.5877]
[1757086890078,3.5711,4299.5,4299.4,3.5877]
[1757086891179,4.1613,4299.5,4298.9,1.5399]
[1757086891378,3.5711,4299.1,4299.0,1.309302]
[1757086891581,3.5711,4299.1,4299.0,3.876302]
[1757086893574,1.0653,4299.1,4299.0,4.490402]
[1757086893782,4.1613,4299.5,4299.4,1.0207]
[1757086893981,4.1613,4299.5,4299.1,0.241]
[1757086894180,4.1613,4299.5,4299.2,0.28872063]
[1757086894383,2.6826,4299.5,4299.3,0.28872063]
[1757086894581,4.1613,4299.5,4299.4,0.28872063]
[1757086895672,4.1613,4299.5,4299.1,0.241]
[1757086895873,4.1613,4299.5,4299.2,0.28885234]
[1757086896072,4.1613,4299.5,4299.1,0.241]
[1757086896073,4.1613,4299.5,4299.3,0.28885234]
[1757086896273,4.1613,4299.5,4299.4,0.28895952]
[1757086897075,4.1613,4299.5,4299.1,0.241]
[1757086897378,3.5711,4299.3,4299.2,1.3097126]
[1757086898270,3.5711,4299.3,4299.2,3.8767126]
[1757086899380,3.5711,4299.3,4299.2,0.2890126]
[1757086899576,6.7789,4299.3,4298.8,0.241]
[1757086899776,4.1613,4299.0,4298.9,0.28895708]
[1757086900481,4.4023,4299.0,4298.9,0.28895708]
[1757086900681,2.0924,4298.1,4298.0,6.48686244]
[1757086900887,3.5711,4298.1,4298.0,7.01688328]
[1757086901585,3.5711,4298.1,4298.0,6.77588328]
[1757086901781,3.5711,4298.1,4298.0,1.30972084]
[1757086901977,3.5711,4298.1,4298.0,0.28902084]
[1757086902378,3.8121,4298.1,4298.0,0.28902084]
[1757086903283,3.8121,4298.1,4297.3,4.7477]
[1757086903483,4.1613,4297.5,4297.4,1.30997185]